[Event "45th FIDE Womens Olympiad 2024"]
[Site "Budapest"]
[Date "2024.09.12"]
[Round "2.202"]
[White "Alazemi, Aisha"]
[Black "Silva Rosas, Natalia"]
[Result "0-1"]
[ECO "B01"]
[WhiteElo "1539"]
[BlackElo "1868"]
[Annotator "NA"]
[PlyCount "66"]
[EventDate "2024.09.05"]
[EventType "team-tourn"]
[EventCountry "HUN"]
[SourceTitle "playchess.com"]
[Source "ChessBase"]
[SourceQuality "1"]
[WhiteTeam "Kuwait"]
[BlackTeam "Uruguay"]
[WhiteTeamCountry "KUW"]
[BlackTeamCountry "URU"]
[TimeControl "40/5400+30:1800+30"]

1. e4 d5 2. exd5 Qxd5 3. Nc3 Qd6 4. Nf3 c6 5. d4 Bg4 6. Bc4 e6 7. O-O Nf6 8. Re1 Be7 9. g3 Qc7 10. Qd3 Nbd7 11. Bf4 Bd6 12. Ne5 O-O 13. Ne4 Nxe4 14. Rxe4 Bf5 15. Rae1 Nf6 16. f3 Nd5 17. Qd2 Bxe4 18. Rxe4 Rad8 19. Bh6 Ne7 20. Bxg7 Kxg7 21. Qg5+ Ng6 22. Ng4 f5 23. Qh6+ Kh8 24. Rxe6 Qg7 25. Rxg6 Qxg6 26. Qxg6 hxg6 27. Nf2 c5 28. c3 cxd4 29. cxd4 a6 30. Nd3 Rfe8 31. Kg2 Re2+ 32. Kh3 Kg7 33. Nf4 Rh8+ 0-1

[Event "45th FIDE Womens Olympiad 2024"]
[Site "Budapest"]
[Date "2024.09.12"]
[Round "2.203"]
[White "Cardozo, Camila"]
[Black "Nema, Rabab"]
[Result "0-1"]
[ECO "E92"]
[WhiteElo "1673"]
[BlackElo "1601"]
[Annotator "NA"]
[PlyCount "76"]
[EventDate "2024.09.05"]
[EventType "team-tourn"]
[EventCountry "HUN"]
[SourceTitle "playchess.com"]
[Source "ChessBase"]
[SourceQuality "1"]
[WhiteTeam "Uruguay"]
[BlackTeam "Kuwait"]
[WhiteTeamCountry "URU"]
[BlackTeamCountry "KUW"]
[TimeControl "40/5400+30:1800+30"]

1. d4 Nf6 2. Nf3 g6 3. c4 Bg7 4. Nc3 O-O 5. e4 d6 6. Be2 e5 7. d5 a5 8. Bg5 h6 9. Bh4 Na6 10. Nd2 Qe8 11. O-O Nh7 12. a3 h5 13. f3 Bd7 14. b3 Bh6 15. Rb1 Be3+ 16. Kh1 Bc5 17. Qc1 f5 18. Na2 g5 19. Bf2 Bxf2 20. Rxf2 f4 21. b4 axb4 22. axb4 g4 23. fxg4 hxg4 24. c5 Qg6 25. c6 bxc6 26. dxc6 Be6 27. Bc4 Nb8 28. Bxe6+ Qxe6 29. Nb3 Ng5 30. Qc2 Qh6 31. Kg1 g3 32. hxg3 fxg3 33. Rxf8+ Kxf8 34. Kf1 Qh1+ 35. Ke2 Qxg2+ 36. Kd3 Qxe4+ 37. Kd2 Nf3+ 38. Kc3 Qxc2+ 0-1

[Event "45th FIDE Womens Olympiad 2024"]
[Site "Budapest"]
[Date "2024.09.12"]
[Round "2.204"]
[White "Ajbali, Ghaleyah"]
[Black "Altesor, Caterina"]
[Result "1-0"]
[ECO "C54"]
[WhiteElo "1513"]
[BlackElo "1741"]
[Annotator "NA"]
[PlyCount "53"]
[EventDate "2024.09.05"]
[EventType "team-tourn"]
[EventCountry "HUN"]
[SourceTitle "playchess.com"]
[Source "ChessBase"]
[SourceQuality "1"]
[WhiteTeam "Kuwait"]
[BlackTeam "Uruguay"]
[WhiteTeamCountry "KUW"]
[BlackTeamCountry "URU"]
[TimeControl "40/5400+30:1800+30"]

1. e4 e5 2. Nf3 Nc6 3. Bc4 Bc5 4. c3 Nf6 5. d4 exd4 6. cxd4 Bb4+ 7. Nc3 Nxe4 8. O-O Nxc3 9. bxc3 Be7 10. d5 Na5 11. Bd3 d6 12. Qa4+ c6 13. Re1 Bd7 14. Qh4 cxd5 15. Bg5 Be6 16. Bf5 Kd7 17. Bxe7 Qxe7 18. Qg4 Qf6 19. Bxe6+ fxe6 20. Qa4+ Nc6 21. Nd4 e5 22. Rab1 Rhf8 23. Rxb7+ Kd8 24. Nxc6+ Kc8 25. Ne7+ Kxb7 26. Qc6+ Kb8 27. Rb1# 1-0

[Event "45th FIDE Womens Olympiad 2024"]
[Site "Budapest"]
[Date "2024.09.12"]
[Round "2.205"]
[White "Ruddy, Rachel"]
[Black "Johnson, Gabriella"]
[Result "1/2-1/2"]
[ECO "A07"]
[WhiteElo "1662"]
[BlackElo "1896"]
[Annotator "NA"]
[PlyCount "92"]
[EventDate "2024.09.05"]
[EventType "team-tourn"]
[EventCountry "HUN"]
[SourceTitle "playchess.com"]
[Source "ChessBase"]
[SourceQuality "1"]
[WhiteTeam "Jersey"]
[BlackTeam "Trinidad & Tobago"]
[WhiteTeamCountry "JCI"]
[TimeControl "40/5400+30:1800+30"]

1. Nf3 d5 2. g3 Nf6 3. Bg2 e6 4. d3 Bd6 5. O-O Nbd7 6. Nbd2 O-O 7. e4 c6 8. Re1 e5 9. a4 a5 10. b3 Re8 11. Bb2 d4 12. c3 dxc3 13. Bxc3 Bc7 14. Nc4 b5 15. Ne3 Nc5 16. Bf1 Ba6 17. axb5 cxb5 18. Bb2 b4 19. Nc4 Bxc4 20. bxc4 a4 21. d4 exd4 22. Bxd4 Nfxe4 23. Bd3 h6 24. Bxe4 Nxe4 25. Rxa4 Nc3 26. Rxe8+ Qxe8 27. Rxa8 Qxa8 28. Qd3 Qe4 29. Qxe4 Nxe4 30. c5 f6 31. c6 Kf7 32. Bb2 Ke6 33. Nd4+ Kd6 34. f4 Bb6 35. Kg2 Bxd4 36. Bxd4 Kxc6 37. Kf3 Nc5 38. Kg4 b3 39. Kh5 Kd5 40. Ba1 Nd3 41. Kg6 Ke4 42. Kxg7 Nxf4 43. Kxf6 Nh5+ 44. Kg6 Nxg3 45. hxg3 Kf3 46. Kxh6 Kxg3 1/2-1/2

[Event "45th FIDE Womens Olympiad 2024"]
[Site "Budapest"]
[Date "2024.09.12"]
[Round "2.206"]
[White "Hermoso Rodriguez, Ysvett"]
[Black "Ashbrooke, Monika"]
[Result "1-0"]
[ECO "C05"]
[WhiteElo "1943"]
[BlackElo "1650"]
[Annotator "NA"]
[PlyCount "65"]
[EventDate "2024.09.05"]
[EventType "team-tourn"]
[EventCountry "HUN"]
[SourceTitle "playchess.com"]
[Source "ChessBase"]
[SourceQuality "1"]
[WhiteTeam "Trinidad & Tobago"]
[BlackTeam "Jersey"]
[BlackTeamCountry "JCI"]
[TimeControl "40/5400+30:1800+30"]

1. e4 e6 2. d4 d5 3. Nd2 Nf6 4. e5 Nfd7 5. f4 c5 6. c3 Nc6 7. Ndf3 Be7 8. Bd3 f6 9. Ne2 O-O 10. O-O cxd4 11. cxd4 Qb6 12. Kh1 a5 13. Qc2 f5 14. a3 Rf7 15. Rg1 Kh8 16. g4 g6 17. Be3 Nf8 18. Rg3 Bd7 19. Rag1 Rc8 20. Nc3 Na7 21. Qd2 Bc6 22. h4 h6 23. Qg2 Nh7 24. gxf5 exf5 25. Rxg6 Qd8 26. Rxh6 Qg8 27. Rg6 Qe8 28. Rg7 Rf8 29. Qg6 Qxg6 30. R7xg6 Rg8 31. Rxg8+ Rxg8 32. Rxg8+ Kxg8 33. Bxf5 1-0

[Event "45th FIDE Womens Olympiad 2024"]
[Site "Budapest"]
[Date "2024.09.12"]
[Round "2.207"]
[White "Forbes, Yasmin"]
[Black "La Fleur, Zara"]
[Result "0-1"]
[ECO "A20"]
[WhiteElo "1606"]
[BlackElo "1773"]
[Annotator "NA"]
[PlyCount "106"]
[EventDate "2024.09.05"]
[EventType "team-tourn"]
[EventCountry "HUN"]
[SourceTitle "playchess.com"]
[Source "ChessBase"]
[SourceQuality "1"]
[WhiteTeam "Jersey"]
[BlackTeam "Trinidad & Tobago"]
[WhiteTeamCountry "JCI"]
[TimeControl "40/5400+30:1800+30"]

1. c4 e5 2. g3 Nf6 3. Bg2 d5 4. d4 dxc4 5. dxe5 Qxd1+ 6. Kxd1 Ng4 7. Be3 Nxe3+ 8. fxe3 Bc5 9. Nd2 Bxe3 10. Nxc4 Bc5 11. Ke1 O-O 12. Rc1 Nd7 13. Nf3 b5 14. Na5 Rb8 15. Nc6 Rb6 16. Nfd4 Bb7 17. e6 fxe6 18. Nxe6 Bxc6 19. Nxf8 Nxf8 20. Rxc5 Bxg2 21. Rg1 Bc6 22. Kf2 Ne6 23. Rc2 Be4 24. Rd2 Rc6 25. Ke3 Bg6 26. Re1 Kf8 27. Kf3 Ng5+ 28. Kf4 Ne4 29. Rd4 Rf6+ 30. Ke3 Re6 31. Kf3 Ke7 32. h4 Rf6+ 33. Ke3 Nxg3 34. Rf4 Nf5+ 35. Kf2 Nd6 36. Rxf6 gxf6 37. Kf3 Kd7 38. Kf4 c5 39. Rd1 Kc6 40. Rf1 Kd7 41. Kg4 Ke6 42. Rc1 c4 43. b3 Ke5 44. Rd1 Bc2 45. Rc1 cxb3 46. axb3 Bxb3 47. Rc7 Be6+ 48. Kf3 Bf5 49. Rxa7 b4 50. Ra5+ Ke6 51. Ra2 b3 52. Rb2 Bc2 53. Kf4 Nc4 0-1

[Event "45th FIDE Womens Olympiad 2024"]
[Site "Budapest"]
[Date "2024.09.12"]
[Round "2.209"]
[White "Bwalya Mulwale, Lubuuto"]
[Black "Sosna Mehari Abraham"]
[Result "1-0"]
[ECO "D45"]
[WhiteElo "1852"]
[BlackElo "1541"]
[Annotator "NA"]
[PlyCount "36"]
[EventDate "2024.09.05"]
[EventType "team-tourn"]
[EventCountry "HUN"]
[SourceTitle "playchess.com"]
[Source "ChessBase"]
[SourceQuality "1"]
[WhiteTeam "Zambia"]
[BlackTeam "Eritrea"]
[WhiteTeamCountry "ZAM"]
[BlackTeamCountry "ERI"]
[TimeControl "40/5400+30:1800+30"]

1. d4 d5 2. c4 c6 3. Nc3 e6 4. Nf3 Nf6 5. e3 Bd6 6. Bd3 dxc4 7. Bxc4 b5 8. Bd3 O-O 9. e4 Bc7 10. e5 Nd5 11. Bxh7+ Kxh7 12. Ng5+ Kg6 13. h4 Bxe5 14. dxe5 Nxc3 15. h5+ Kf5 16. Qf3+ Kxe5 17. Bf4+ Kd4 18. Qxc3+ Kd5 1-0

[Event "45th FIDE Womens Olympiad 2024"]
[Site "Budapest"]
[Date "2024.09.12"]
[Round "2.210"]
[White "Besrat Mesgena Yoseph"]
[Black "Likando, Namakau"]
[Result "0-1"]
[ECO "B13"]
[WhiteElo "1557"]
[BlackElo "1746"]
[Annotator "NA"]
[PlyCount "74"]
[EventDate "2024.09.05"]
[EventType "team-tourn"]
[EventCountry "HUN"]
[SourceTitle "playchess.com"]
[Source "ChessBase"]
[SourceQuality "1"]
[WhiteTeam "Eritrea"]
[BlackTeam "Zambia"]
[WhiteTeamCountry "ERI"]
[BlackTeamCountry "ZAM"]
[TimeControl "40/5400+30:1800+30"]

1. e4 c6 2. Nc3 d5 3. exd5 cxd5 4. d4 Nf6 5. Nf3 Bg4 6. Be2 e6 7. O-O Be7 8. h3 Bxf3 9. Bxf3 O-O 10. Bf4 Nc6 11. a3 Qb6 12. Rb1 Nxd4 13. Be3 Nxf3+ 14. Qxf3 d4 15. Bf4 dxc3 16. bxc3 Qc6 17. Qg3 Nh5 18. Qg4 Nxf4 19. Qxf4 Bxa3 20. Rfd1 Rad8 21. Rd3 b6 22. Rbd1 Rxd3 23. Rxd3 h6 24. Rg3 Bd6 25. Qh4 Bxg3 26. Qxg3 Rc8 27. Qh4 Qxc3 28. Qe7 Qxc2 29. Qxa7 Qc1+ 30. Kh2 Qc7+ 31. Qxc7 Rxc7 32. Kg3 b5 33. Kh4 b4 34. f4 b3 35. g4 b2 36. Kh5 b1=Q 37. h4 Qg6# 0-1

[Event "45th FIDE Womens Olympiad 2024"]
[Site "Budapest"]
[Date "2024.09.12"]
[Round "2.211"]
[White "Mbatha, Constance"]
[Black "Elshalom Essayas Berhane"]
[Result "1-0"]
[ECO "E32"]
[WhiteElo "1799"]
[BlackElo "1659"]
[Annotator "NA"]
[PlyCount "109"]
[EventDate "2024.09.05"]
[EventType "team-tourn"]
[EventCountry "HUN"]
[SourceTitle "playchess.com"]
[Source "ChessBase"]
[SourceQuality "1"]
[WhiteTeam "Zambia"]
[BlackTeam "Eritrea"]
[WhiteTeamCountry "ZAM"]
[BlackTeamCountry "ERI"]
[TimeControl "40/5400+30:1800+30"]

1. d4 e6 2. c4 Nf6 3. Nc3 Bb4 4. Qc2 b6 5. Bd2 Bb7 6. f3 Nc6 7. e3 Bxc3 8. Bxc3 O-O 9. Bd3 d5 10. Ne2 dxc4 11. Bxc4 Nd5 12. Bxd5 exd5 13. O-O Re8 14. Bd2 Ne7 15. Ng3 Ng6 16. Rae1 Rc8 17. Bc3 c5 18. Qd1 Rc7 19. dxc5 Rxc5 20. Qd4 f6 21. Rd1 Qc7 22. Rfe1 Ne5 23. e4 dxe4 24. Nxe4 Rd5 25. Qa4 Bc6 26. Qb3 Qd7 27. Nf2 Kh8 28. Rxd5 Bxd5 29. Qd1 Qc6 30. Bxe5 fxe5 31. a3 h6 32. h3 Bf7 33. Ng4 e4 34. fxe4 Rxe4 35. Rxe4 Qxe4 36. Qd2 Qd5 37. Qxd5 Bxd5 38. Kf2 Kg8 39. Ne3 Be6 40. Kg3 Kf7 41. Kf4 Kf6 42. g4 b5 43. h4 g5+ 44. hxg5+ hxg5+ 45. Ke4 Bd7 46. b4 Bc6+ 47. Kd4 a6 48. Nd5+ Ke6 49. Nc7+ Kd6 50. Nxa6 Bd7 51. Nc5 Bxg4 52. Ne4+ Kc6 53. Nxg5 Be2 54. Nf7 Bc4 55. Ne5+ 1-0

[Event "45th FIDE Womens Olympiad 2024"]
[Site "Budapest"]
[Date "2024.09.12"]
[Round "2.213"]
[White "Charinda, Kudzanayi"]
[Black "Andhin, Chethanah"]
[Result "1-0"]
[ECO "B06"]
[WhiteElo "1854"]
[BlackElo "1607"]
[Annotator "NA"]
[PlyCount "65"]
[EventDate "2024.09.05"]
[EventType "team-tourn"]
[EventCountry "HUN"]
[SourceTitle "playchess.com"]
[Source "ChessBase"]
[SourceQuality "1"]
[WhiteTeam "Zimbabwe"]
[BlackTeam "Mauritius"]
[WhiteTeamCountry "ZIM"]
[BlackTeamCountry "MRI"]
[TimeControl "40/5400+30:1800+30"]

1. e4 g6 2. d4 Bg7 3. Nf3 d6 4. c3 a6 5. Bd3 Nd7 6. Be3 b5 7. Nbd2 Bb7 8. Qb3 Ngf6 9. O-O O-O 10. c4 c6 11. Rad1 Rc8 12. h3 Ba8 13. e5 dxe5 14. dxe5 Ne8 15. e6 Ne5 16. Nxe5 Bxe5 17. Nf3 Qc7 18. exf7+ Rxf7 19. cxb5 axb5 20. Ng5 Nd6 21. Nxf7 Nxf7 22. f4 Bf6 23. Be4 Kf8 24. Bc5 Rd8 25. Rxd8+ Qxd8 26. Qe6 Bd4+ 27. Bxd4 Qxd4+ 28. Kh1 Nd6 29. Re1 Bb7 30. Bxg6 hxg6 31. Qxe7+ Kg8 32. Qd8+ Kg7 33. Re7+ 1-0

[Event "45th FIDE Womens Olympiad 2024"]
[Site "Budapest"]
[Date "2024.09.12"]
[Round "2.214"]
[White "Acham, Meritza"]
[Black "Makwena, Christine"]
[Result "0-1"]
[ECO "E94"]
[WhiteElo "1667"]
[BlackElo "1860"]
[Annotator "NA"]
[PlyCount "98"]
[EventDate "2024.09.05"]
[EventType "team-tourn"]
[EventCountry "HUN"]
[SourceTitle "playchess.com"]
[Source "ChessBase"]
[SourceQuality "1"]
[WhiteTeam "Mauritius"]
[BlackTeam "Zimbabwe"]
[WhiteTeamCountry "MRI"]
[BlackTeamCountry "ZIM"]
[TimeControl "40/5400+30:1800+30"]

1. d4 Nf6 2. c4 g6 3. Nc3 Bg7 4. e4 d6 5. Nf3 O-O 6. Be2 e5 7. O-O exd4 8. Nxd4 Re8 9. f3 Nbd7 10. Qd2 Ne5 11. b3 c6 12. Rd1 Qc7 13. Ba3 Bf8 14. Nc2 Re6 15. Ne3 Qb6 16. Na4 Qc7 17. Rac1 Ned7 18. Rc3 Ne8 19. Rd3 Ne5 20. Rd4 Bh6 21. Kh1 c5 22. Rd5 Nc6 23. Qc3 Nd4 24. Ng4 Bg7 25. Qd2 h5 26. Nf2 Qe7 27. Bb2 Nc7 28. Bxd4 Bxd4 29. Nd3 Nxd5 30. cxd5 Rf6 31. Qg5 Bd7 32. Nab2 b5 33. Nf4 Qe5 34. Qxe5 dxe5 35. Nfd3 Rb6 36. Rc1 Rc8 37. Nd1 c4 38. Nb4 a5 39. Nc2 cxb3 40. axb3 Rb7 41. Bd3 Rbc7 42. Rb1 Rxc2 43. Bxc2 Rxc2 44. h3 Kg7 45. Kh2 h4 46. Kh1 Kf6 47. Kh2 Kg5 48. b4 a4 49. d6 a3 0-1

[Event "45th FIDE Womens Olympiad 2024"]
[Site "Budapest"]
[Date "2024.09.12"]
[Round "2.217"]
[White "Nomcebo, Sibisi"]
[Black "Sakai, Azumi"]
[Result "0-1"]
[ECO "D02"]
[WhiteElo "1570"]
[BlackElo "1871"]
[Annotator "NA"]
[PlyCount "118"]
[EventDate "2024.09.05"]
[EventType "team-tourn"]
[EventCountry "HUN"]
[SourceTitle "playchess.com"]
[Source "ChessBase"]
[SourceQuality "1"]
[WhiteTeam "Eswatini"]
[BlackTeam "Japan"]
[BlackTeamCountry "JPN"]
[TimeControl "40/5400+30:1800+30"]

1. d4 d5 2. Nf3 Nf6 3. g3 e6 4. Bg2 Bd6 5. O-O O-O 6. b3 c6 7. Ne5 Nbd7 8. Bb2 Qc7 9. Nxd7 Bxd7 10. Nd2 Rac8 11. Rc1 Rfe8 12. Nf3 Ne4 13. c4 f5 14. Ne5 Rf8 15. cxd5 exd5 16. Nxd7 Qxd7 17. e3 Rce8 18. a3 g5 19. b4 Re6 20. Rc2 Rh6 21. Bxe4 fxe4 22. f3 Rhf6 23. Rcf2 Qf7 24. Kg2 Qh5 25. f4 g4 26. Rh1 Qh3+ 27. Kg1 Rg6 28. Bc3 Qh6 29. Bd2 Rf5 30. Qa4 Bb8 31. b5 Qf8 32. Bb4 Qe8 33. bxc6 Rxc6 34. Rc2 Rff6 35. Kg2 Rxc2+ 36. Qxc2 Rc6 37. Qb3 Rc4 38. Rf1 Qb5 39. Qd1 h5 40. h3 Qd7 41. hxg4 Qxg4 42. Qxg4+ hxg4 43. Rd1 Kf7 44. Kf2 Bc7 45. Ke2 b6 46. Kd2 a5 47. Bc3 Bd6 48. Rb1 Rc6 49. a4 Bc7 50. Kc2 Rh6 51. Rg1 Rh2+ 52. Kb3 Re2 53. Rh1 Bd8 54. Rh4 Bxh4 55. gxh4 g3 56. h5 g2 57. h6 g1=Q 58. h7 Qb1+ 59. Ka3 Qa2# 0-1

[Event "45th FIDE Womens Olympiad 2024"]
[Site "Budapest"]
[Date "2024.09.12"]
[Round "2.218"]
[White "Shibata, Misaki"]
[Black "Dlamini Sincobile"]
[Result "1-0"]
[ECO "E20"]
[WhiteElo "1847"]
[BlackElo "1572"]
[Annotator "NA"]
[PlyCount "81"]
[EventDate "2024.09.05"]
[EventType "team-tourn"]
[EventCountry "HUN"]
[SourceTitle "playchess.com"]
[Source "ChessBase"]
[SourceQuality "1"]
[WhiteTeam "Japan"]
[BlackTeam "Eswatini"]
[WhiteTeamCountry "JPN"]
[TimeControl "40/5400+30:1800+30"]

1. d4 Nf6 2. c4 e6 3. Nc3 g6 4. e4 d6 5. Bd3 Bg7 6. Nge2 Nbd7 7. O-O O-O 8. f3 b6 9. b4 c5 10. Qb3 Qc7 11. Be3 cxb4 12. Qxb4 a5 13. Qb3 Ba6 14. Rac1 d5 15. exd5 exd5 16. Nxd5 Nxd5 17. cxd5 Qb7 18. Rc6 Rfe8 19. Bxa6 Qxa6 20. Ng3 a4 21. Qc3 Qb5 22. Bf2 Qxd5 23. a3 Bf8 24. Rc1 b5 25. Ne4 f5 26. Nd2 Re2 27. Nb1 Qa2 28. Bg3 Rxg2+ 29. Kh1 Re8 30. Rc2 Rxc2 31. Qxc2 Qxc2 32. Rxc2 Re3 33. Kg2 Rb3 34. Rc7 Rxb1 35. Rxd7 Rb2+ 36. Kh3 Bxa3 37. d5 Rb1 38. Rb7 Bc5 39. d6 Rd1 40. d7 Kf7 41. d8=Q+ 1-0

[Event "45th FIDE Womens Olympiad 2024"]
[Site "Budapest"]
[Date "2024.09.12"]
[Round "2.219"]
[White "Nosimilo, Mkhonto"]
[Black "Kinoshita, Kanako"]
[Result "1/2-1/2"]
[ECO "C41"]
[WhiteElo "1561"]
[BlackElo "1822"]
[Annotator "NA"]
[PlyCount "122"]
[EventDate "2024.09.05"]
[EventType "team-tourn"]
[EventCountry "HUN"]
[SourceTitle "playchess.com"]
[Source "ChessBase"]
[SourceQuality "1"]
[WhiteTeam "Eswatini"]
[BlackTeam "Japan"]
[BlackTeamCountry "JPN"]
[TimeControl "40/5400+30:1800+30"]

1. e4 d6 2. Nf3 e5 3. Bc4 Nf6 4. d3 h6 5. c3 c6 6. Bb3 Nbd7 7. Nbd2 Be7 8. O-O g5 9. d4 Qc7 10. Re1 Nf8 11. dxe5 dxe5 12. Nf1 Be6 13. Ng3 Ng6 14. Nf5 Rd8 15. Qc2 Nh5 16. g4 Nhf4 17. Bxf4 Nxf4 18. Ng7+ Kf8 19. Nxe6+ fxe6 20. Rad1 Kf7 21. Rxd8 Rxd8 22. Kf1 Rd3 23. Re3 Rd8 24. Re1 Kf6 25. Nd2 Bc5 26. Nc4 b5 27. Ne3 a5 28. a4 Qb6 29. axb5 cxb5 30. Ba2 Qb7 31. Rd1 Qb6 32. Rxd8 Qxd8 33. Qd1 Qxd1+ 34. Nxd1 Ke7 35. Bb1 Kd6 36. b3 Kc6 37. Nb2 Bd6 38. Nd3 Ng6 39. Ba2 Be7 40. b4 axb4 41. cxb4 Kd7 42. Ke2 Nf4+ 43. Nxf4 exf4 44. f3 Bxb4 45. h3 Kd6 46. Kd3 e5 47. Bb3 Kc5 48. Bc2 Ba5 49. Bb3 Kb4 50. Kc2 Bb6 51. Bd5 Bd4 52. Bb3 Bf2 53. Bd5 Kc5 54. Kd3 Kb4 55. Kc2 Ka3 56. Bb3 Kb4 57. Bd5 Be1 58. Bb3 Kc5 59. Kd3 b4 60. Bd5 Kb5 61. Bb3 Kc5 1/2-1/2

[Event "45th FIDE Womens Olympiad 2024"]
[Site "Budapest"]
[Date "2024.09.12"]
[Round "2.222"]
[White "Pourier, Dianthely"]
[Black "Rivera Negron, Yanira"]
[Result "0-1"]
[ECO "D13"]
[WhiteElo "1548"]
[BlackElo "1805"]
[Annotator "NA"]
[PlyCount "104"]
[EventDate "2024.09.05"]
[EventType "team-tourn"]
[EventCountry "HUN"]
[SourceTitle "playchess.com"]
[Source "ChessBase"]
[SourceQuality "1"]
[WhiteTeam "Netherlands Antilles"]
[BlackTeam "Puerto Rico"]
[WhiteTeamCountry "AHO"]
[BlackTeamCountry "PUR"]
[TimeControl "40/5400+30:1800+30"]

1. d4 d5 2. Bf4 Nf6 3. Nf3 c5 4. c3 cxd4 5. cxd4 Qb6 6. Qb3 Qxb3 7. axb3 Nc6 8. e3 e6 9. Bd3 Nb4 10. Bb5+ Bd7 11. Bxd7+ Nxd7 12. O-O a6 13. Nbd2 Nd3 14. Rab1 Nxf4 15. exf4 Bd6 16. g3 O-O 17. Ne5 Nxe5 18. fxe5 Bb4 19. Rfd1 Rfc8 20. Nf3 Rc2 21. Ne1 Bxe1 22. Rxe1 Rac8 23. Red1 h6 24. Kg2 Re2 25. Re1 Rd2 26. Rbc1 Rxc1 27. Rxc1 Rxd4 28. Rc8+ Kh7 29. Rc7 Rb4 30. Rxf7 Rxb3 31. Re7 Rb6 32. f4 Kg8 33. Rd7 Rxb2+ 34. Kf3 Rb6 35. f5 exf5 36. Rxd5 g5 37. Rd8+ Kf7 38. Rd7+ Ke6 39. Rd8 Kxe5 40. Ke3 Rd6 41. Re8+ Re6 42. Rd8 b5 43. Rd3 Rc6 44. Kd2 Rd6 45. Ke2 Rxd3 46. Kxd3 a5 47. Ke3 a4 48. Kd2 b4 49. Kc2 a3 50. Kb1 b3 51. Kc1 a2 52. Kb2 f4 0-1

[Event "45th FIDE Womens Olympiad 2024"]
[Site "Budapest"]
[Date "2024.09.12"]
[Round "2.223"]
[White "Vega Jimenez, Keyshla M."]
[Black "Pieter, Liana"]
[Result "1-0"]
[ECO "B13"]
[WhiteElo "1769"]
[BlackElo "1619"]
[Annotator "NA"]
[PlyCount "87"]
[EventDate "2024.09.05"]
[EventType "team-tourn"]
[EventCountry "HUN"]
[SourceTitle "playchess.com"]
[Source "ChessBase"]
[SourceQuality "1"]
[WhiteTeam "Puerto Rico"]
[BlackTeam "Netherlands Antilles"]
[WhiteTeamCountry "PUR"]
[BlackTeamCountry "AHO"]
[TimeControl "40/5400+30:1800+30"]

1. e4 c6 2. d4 d5 3. exd5 cxd5 4. Bd3 Nf6 5. c3 Nc6 6. Bf4 Bg4 7. Qb3 Na5 8. Qa4+ Bd7 9. Qc2 g6 10. Nf3 Bg7 11. Ne5 Rc8 12. Qe2 a6 13. Nxd7 Nxd7 14. Nd2 O-O 15. O-O Re8 16. Nf3 Nc6 17. Ne5 f6 18. Ng4 e5 19. dxe5 fxe5 20. Nh6+ Kf8 21. Bd2 Bf6 22. Qg4 e4 23. Bc2 Kg7 24. Nf5+ Kh8 25. Nh6 Nde5 26. Qh3 Qe7 27. Rad1 Nc4 28. Bc1 Rcd8 29. Rfe1 Bg5 30. Bxg5 Qe6 31. Qxe6 Rxe6 32. Nf7+ Kg7 33. Nxd8 Nxd8 34. Bxd8 Rd6 35. Bg5 b5 36. b3 Na5 37. Bxe4 h6 38. Bf4 Rd8 39. Bc7 Re8 40. Bxd5 Rxe1+ 41. Rxe1 Nxb3 42. axb3 Kh7 43. Re7+ Kh8 44. Be5# 1-0

[Event "45th FIDE Womens Olympiad 2024"]
[Site "Budapest"]
[Date "2024.09.12"]
[Round "2.225"]
[White "Sawan, Eman"]
[Black "Callender, Jessica"]
[Result "1-0"]
[ECO "B41"]
[WhiteElo "1972"]
[BlackElo "1579"]
[Annotator "NA"]
[PlyCount "63"]
[EventDate "2024.09.05"]
[EventType "team-tourn"]
[EventCountry "HUN"]
[SourceTitle "playchess.com"]
[Source "ChessBase"]
[SourceQuality "1"]
[WhiteTeam "Palestine"]
[BlackTeam "Guyana"]
[WhiteTeamCountry "PLE"]
[BlackTeamCountry "GUY"]
[TimeControl "40/5400+30:1800+30"]

1. e4 c5 2. Nf3 e6 3. d4 cxd4 4. Nxd4 a6 5. c4 e5 6. Nb3 Qc7 7. Nc3 Nf6 8. Bd3 Nc6 9. O-O Be7 10. Be3 d6 11. Rc1 Qd8 12. Nd5 Nxd5 13. cxd5 Nb4 14. Bb1 a5 15. a3 Na6 16. Bd3 b6 17. Bb5+ Bd7 18. Bxd7+ Qxd7 19. Bxb6 a4 20. Nd2 Rb8 21. Nc4 O-O 22. Be3 Rfc8 23. Nb6 Rxc1 24. Qxc1 Qb5 25. Qc6 Qxc6 26. dxc6 Bd8 27. Nxa4 Rc8 28. b4 Nc7 29. Nb6 Rb8 30. a4 Ne6 31. Nd5 Bc7 32. b5 1-0

[Event "45th FIDE Womens Olympiad 2024"]
[Site "Budapest"]
[Date "2024.09.12"]
[Round "2.226"]
[White "Shariff, Sasha Christina"]
[Black "Hamouri, Taqwa"]
[Result "0-1"]
[ECO "C01"]
[WhiteElo "1538"]
[BlackElo "1845"]
[Annotator "NA"]
[PlyCount "68"]
[EventDate "2024.09.05"]
[EventType "team-tourn"]
[EventCountry "HUN"]
[SourceTitle "playchess.com"]
[Source "ChessBase"]
[SourceQuality "1"]
[WhiteTeam "Guyana"]
[BlackTeam "Palestine"]
[WhiteTeamCountry "GUY"]
[BlackTeamCountry "PLE"]
[TimeControl "40/5400+30:1800+30"]

1. e4 e6 2. d4 d5 3. exd5 exd5 4. Nc3 c6 5. a4 Bd6 6. Nf3 Ne7 7. Bd3 Qc7 8. Be3 f6 9. Ne2 Be6 10. Rc1 Nd7 11. c4 dxc4 12. Bxc4 Bxc4 13. Rxc4 Nb6 14. Rc1 Nbd5 15. Bd2 g5 16. O-O g4 17. Ne1 Bxh2+ 18. Kh1 Bd6 19. Nc3 Qd7 20. Ne4 Bc7 21. Nc5 Qf5 22. Kg1 Qh5 23. g3 Qg6 24. Qe2 h5 25. Ng2 O-O-O 26. Qe6+ Kb8 27. Nh4 Qg7 28. Nf5 Nxf5 29. Qxf5 Ne7 30. Nd7+ Kc8 31. Qxf6 Qxf6 32. Nxf6 h4 33. Nxg4 hxg3 34. fxg3 Rhg8 0-1

[Event "45th FIDE Womens Olympiad 2024"]
[Site "Budapest"]
[Date "2024.09.12"]
[Round "2.227"]
[White "Faqeeh, Yara"]
[Black "Joshi, Aditi Narayan"]
[Result "0-1"]
[ECO "D02"]
[WhiteElo "1671"]
[BlackElo "1546"]
[Annotator "NA"]
[PlyCount "122"]
[EventDate "2024.09.05"]
[EventType "team-tourn"]
[EventCountry "HUN"]
[SourceTitle "playchess.com"]
[Source "ChessBase"]
[SourceQuality "1"]
[WhiteTeam "Palestine"]
[BlackTeam "Guyana"]
[WhiteTeamCountry "PLE"]
[BlackTeamCountry "GUY"]
[TimeControl "40/5400+30:1800+30"]

1. d4 Nf6 2. Bf4 d5 3. Nf3 c5 4. e3 Qb6 5. Qc1 Bg4 6. Ne5 cxd4 7. exd4 Qxd4 8. Nc3 a6 9. Bd3 Nc6 10. Nxg4 Nxg4 11. O-O e5 12. Bg3 e4 13. Be2 Nf6 14. a3 Rd8 15. Rd1 Qb6 16. b4 Nd4 17. Be5 Nxe2+ 18. Nxe2 Ng4 19. Bd4 Qc7 20. h3 Ne5 21. Qe3 Be7 22. Bb6 Qc4 23. Bxd8 Bxd8 24. Nc3 Bg5 25. Qd4 Bf6 26. Qxc4 Nxc4 27. Nxd5 Bxa1 28. Rxa1 Kd7 29. a4 Re8 30. a5 Kc6 31. Rd1 Re5 32. Nc3 f5 33. Ne2 Rd5 34. Nd4+ Kd7 35. c3 g6 36. Kf1 Kd6 37. Ke2 Nb2 38. Rd2 Nc4 39. Rd1 Nb2 40. Rc1 Na4 41. Rc2 Nxc3+ 42. Rxc3 Rxd4 43. Rb3 Kd5 44. Ke3 Kc4 45. Rb1 Rd3+ 46. Kf4 Rb3 47. Rc1+ Kxb4 48. Rc7 Kxa5 49. Rxh7 Rb2 50. Ke3 b5 51. Rg7 f4+ 52. Kxe4 Rxf2 53. Rxg6 b4 54. h4 b3 55. Rg8 b2 56. Rb8 Ka4 57. h5 Rxg2 58. Kxf4 Ka3 59. h6 Rh2 60. Kg5 Ka2 61. Rb4 b1=Q 0-1